Cogmind - Beta 13 @@@ ROGUE MODE // 2024.04.10 @ 00:58:31 Player: Copyrite Result: Self-destructed Performance ------------- Evolutions (2) 1000 Regions Visited (5) 1000 Robots Destroyed (28) 140 Value Destroyed (526) 526 Prototype IDs (5) 100 Alien Tech Used (0) 0 Bonus (300) 300 TOTAL SCORE: 3066 Bonus ------- Aligned with FarCom 300 Cogmind --------- Core Integrity 340/550 Matter 20/300 Energy 13/100 System Corruption 2% Temperature Cool (0) Movement Walking (130) Location -8/Materials Parts ------- > --- POWER (1) -------- (None) > --- PROPULSION (3) --- Titanium Leg Titanium Leg Titanium Leg > --- UTILITY (5) ------ Small Storage Unit Signal Interpreter Improved Terrain Scanner Improved Terrain Scan Processor > --- WEAPON (2) ------- Gauss Cannon > --- INVENTORY (8) ---- Improved Airjet Advanced Visual Processing Unit Experimental Sensor Array Hacking Suite System Shield Improved Datajack Peak State ------------ > --- POWER ------------ Light Nuclear Core > --- PROPULSION ------- Improved Airjet Improved Airjet Improved Airjet > --- UTILITY ---------- Small Storage Unit Signal Interpreter Improved Terrain Scanner Improved Terrain Scan Processor 0b10 Alert Chip > --- WEAPON ----------- Gauss Cannon Gauss Cannon > --- INVENTORY -------- Titanium Leg Titanium Leg Titanium Leg Improved Airjet Experimental Sensor Array Hacking Suite System Shield Rocket Launcher [Rating: 43] Favorites ----------- Power Light Ion Engine Engine Light Ion Engine Power Core Light Nuclear Core Propulsion Improved Airjet Leg Titanium Leg Wheel Wheel Hover Unit Improved Airjet Utility Signal Interpreter Device Improved Terrain Scanner Storage Small Storage Unit Processor Signal Interpreter Weapon Autogun Energy Cannon Advanced Beam Cannon Ballistic Gun Autogun Ballistic Cannon Gauss Cannon Build | -11 -10 -10 -10 -9 -8 ------- Run | Yrd Mat Min Exi Min Mat Slots Evolved 4 | . . . . . 4 Power . | . . . . . . Propulsion 1 | . . . . . 1 Utility 3 | . . . . . 3 Weapon . | . . . . . . Parts Attached 38 | 5 7 6 3 . 17 Power 4 | 1 1 . . . 2 Engine 3 | 1 1 . . . 1 Core 1 | . . . . . 1 Reactor . | . . . . . . Propulsion 15 | 2 1 2 . . 10 Treads . | . . . . . . Leg 3 | . . . . . 3 Wheel 3 | 2 1 . . . . Hover 9 | . . 2 . . 7 Flight . | . . . . . . Utility 10 | 1 1 2 3 . 3 Device 3 | . . . 2 . 1 Storage 4 | 1 . 2 . . 1 Processor 3 | . 1 . 1 . 1 Hackware . | . . . . . . Protection . | . . . . . . Artifact . | . . . . . . Weapon 9 | 1 4 2 . . 2 Energy Gun . | . . . . . . Energy Cannon 1 | . 1 . . . . Ballistic Gun 6 | 1 3 2 . . . Ballistic Cannon 2 | . . . . . 2 Launcher . | . . . . . . Special Weapon . | . . . . . . Impact Weapon . | . . . . . . Slashing Weapon . | . . . . . . Piercing Weapon . | . . . . . . Special Melee Weapon . | . . . . . . Unidentified Prototypes 5 | . 1 . 3 . 1 Parts Lost 5 | . 1 . . . 4 Power 2 | . 1 . . . 1 Propulsion 2 | . . . . . 2 Utility 1 | . . . . . 1 Weapon . | . . . . . . Highest Loss Streak 4 | . 1 . . . 4 To Critical Strikes . | . . . . . . Average Slot Usage (%) 96 | . 88 100 99 100 94 Engine 11 | . 14 14 14 14 5 Wheel 7 | . 28 10 . . . Hover 20 | . . 17 28 28 25 Device 2 | . . . . . 7 Storage 10 | . 14 14 7 . 9 Processor 18 | . 4 14 19 28 25 Ballistic Gun 22 | . 27 28 28 28 12 Ballistic Cannon 1 | . . . . . 5 Naked Turns . | . . . . . . Heaviest Build 89 | 9 14 89 14 9 25 Greatest Support 51 | 20 20 20 14 14 51 Greatest Overweight (x) 6 | . . 6 . . 4 Average Overweight (x) . | . . . . . . Largest Inventory Capacity 25 | 8 8 25 8 5 8 Average Capacity 7 | 6 8 8 6 5 8 Most Carried 9 | 5 8 9 8 5 8 Average Carried 7 | 2 7 7 6 5 7 Final Capacity 8 | 8 8 8 5 5 8 Final Carried 8 | 5 8 8 5 5 6 Class Distribution -------------------- 74% | Mutant 25% | Scout Dominant Class ---------------- Mutant | -10/Materials Mutant | -10/Mines Mutant | -10/Exiles Mutant | -9/Mines Scout | -8/Materials Resources | -11 -10 -10 -10 -9 -8 ----------- Run | Yrd Mat Min Exi Min Mat Matter Collected 883 | 176 216 207 . 30 254 Remotely . | . . . . . . Salvage Created 708 | . 299 136 . . 273 Parts 56 | . 24 8 . . 24 Haulers Intercepted . | . . . . . . Recyclers Shooed 1 | . 1 . . . . Parts Field Recycled . | . . . . . . Retrieved Matter . | . . . . . . Parts Self-Destructed . | . . . . . . Prevented . | . . . . . . Kills | -11 -10 -10 -10 -9 -8 ------- Run | Yrd Mat Min Exi Min Mat Combat Hostiles Destroyed 22 | . 8 5 . . 9 Guns 16 | . 8 5 . . 3 Cannons 6 | . . . . . 6 Classes Destroyed 9 | . 5 . . . 4 Worker 2 | . 1 . . . 1 Builder 1 | . . . . . 1 Recycler 1 | . 1 . . . . Operator 1 | . . . . . 1 Watcher 1 | . 1 . . . . Swarmer 13 | . 6 3 . . 4 Cutter 2 | . . . . . 2 Grunt 5 | . 2 2 . . 1 Sentry 2 | . . . . . 2 Best Kill Streak 8 | . 8 3 . . 4 Combat Bots Only 5 | . 5 3 . . 3 Max Kills in Single Turn 2 | . 1 1 . . 2 Gunslinging . | . . . . . . Exploded . | . . . . . . Melee . | . . . . . . Uniques/NPCs Destroyed . | . . . . . . Combat | -11 -10 -10 -10 -9 -8 -------- Run | Yrd Mat Min Exi Min Mat Hostile Shots Fired 164 | . 36 9 . . 119 Missed 54 | . 7 3 . . 44 Damage Taken 1426 | . 292 82 . . 1052 Core 293 | . 83 . . . 210 Absorbed by Shields . | . . . . . . Core Remaining (%) 83 | 100 . . . 66 . Volleys Fired 69 | . 20 8 . . 41 Largest 2 | . 2 2 . . 2 Hottest 96 | . 46 46 . . 96 Shots Fired 134 | . 40 16 . . 78 Gun 98 | . 40 16 . . 42 Cannon 36 | . . . . . 36 Launcher . | . . . . . . Special . | . . . . . . Kinetic 134 | . 40 16 . . 78 Thermal . | . . . . . . Explosive . | . . . . . . Electromagnetic . | . . . . . . Robot Hit Streak 18 | . 13 18 . . 12 Robot Miss Streak 8 | . 2 1 . . 8 Penetration Max . | . . . . . . Secondary Targets 1 | . 1 . . . . Max Gunslinging Chain 1 | . 1 . . . . Shots Hit Robots 76 | . 27 13 . . 36 Core Hits 39 | . 14 7 . . 18 Critical Kills . | . . . . . . Critical Parts Destroyed 1 | . . . . . 1 Critical Strikes 3 | . . . . . 3 Destroy 1 | . . . . . 1 Blast 2 | . . . . . 2 Melee Attacks . | . . . . . . Impact . | . . . . . . Slashing . | . . . . . . Piercing . | . . . . . . Sneak Attacks . | . . . . . . Combat Hostiles . | . . . . . . Follow-up Attacks . | . . . . . . Damage Inflicted 1400 | . 414 182 . . 804 Guns 1027 | . 414 182 . . 431 Cannons 373 | . . . . . 373 Explosions . | . . . . . . Melee . | . . . . . . Ramming . | . . . . . . Kinetic 1400 | . 414 182 . . 804 Thermal . | . . . . . . Explosive . | . . . . . . Electromagnetic . | . . . . . . Impact . | . . . . . . Slashing . | . . . . . . Piercing . | . . . . . . Highest Corruption 2 | . . . . . 2 Average Corruption 2 | . . . . . 2 Corruption Purged . | . . . . . . Corruption Blocked . | . . . . . . Effects 7 | . . . . . 7 Message Errors 3 | . . . . . 3 Heat Flow Errors 2 | . . . . . 2 Energy Discharges 1 | . . . . . 1 Weapon Failures 1 | . . . . . 1 Overload Shots . | . . . . . . Overflow Damage 30 | . . . . . 30 Projectiles 30 | . . . . . 30 Explosions . | . . . . . . Melee . | . . . . . . Knockbacks 3 | . . . . . 3 Impact . | . . . . . . Kinetic 3 | . . . . . 3 Secondary . | . . . . . . Self-Inflicted Damage . | . . . . . . Shots . | . . . . . . Rammed . | . . . . . . Targets Rammed . | . . . . . . Kicked . | . . . . . . Crushed . | . . . . . . Highest Temperature 276 | . 35 30 . . 276 Average Temperature 56 | . 9 12 . . 79 Received Heat Transfer 234 | . 63 36 . . 135 Siege Activations . | . . . . . . Robots Corrupted . | . . . . . . Combat Hostiles . | . . . . . . Parts Fried . | . . . . . . Impact Corruptions . | . . . . . . Robots Melted . | . . . . . . Combat Hostiles . | . . . . . . Parts Melted . | . . . . . . Heat Transferred . | . . . . . . Parts Sabotaged . | . . . . . . Parts Stolen . | . . . . . . Parts Stripped . | . . . . . . Power Chain Reactions . | . . . . . . Alert | -11 -10 -10 -10 -9 -8 ------- Run | Yrd Mat Min Exi Min Mat Peak Influence 258 | . 258 220 . 12 156 Initial 100 | . . 100 . . 4 Average 72 | . 130 114 . 3 38 Maximum Alert Level 1 | . 1 1 . . . Low Security (%) 84 | 100 64 69 . 100 100 Level 1 15 | . 35 30 . . . Level 2 . | . . . . . . Level 3 . | . . . . . . Level 4 . | . . . . . . Level 5 . | . . . . . . High Security . | . . . . . . Max Security . | . . . . . . Squads Dispatched 3 | . . . . . 3 Investigation . | . . . . . . Extermination . | . . . . . . Reinforcement 3 | . . . . . 3 Assault . | . . . . . . Garrison . | . . . . . . Intercept . | . . . . . . Searches Triggered . | . . . . . . Construction Impeded . | . . . . . . Haulers Reinforced . | . . . . . . Active Scanning Responses . | . . . . . . Cargo Convoy Interrupts . | . . . . . . Stealth | -11 -10 -10 -10 -9 -8 --------- Run | Yrd Mat Min Exi Min Mat Distress Signals 1 | . . . . . 1 Communications Jammed . | . . . . . . Distress Signals . | . . . . . . Times Spotted 37 | . 13 5 . . 19 Peak Tracking Total 8 | . 8 3 . . 8 Tactical Retreats 1 | . 1 . . . . Traps | -11 -10 -10 -10 -9 -8 ------- Run | Yrd Mat Min Exi Min Mat Traps Triggered 2 | . . . . . 2 Indirectly . | . . . . . . Trap Hack Attempts . | . . . . . . Triggered . | . . . . . . Disarmed . | . . . . . . Reprogrammed . | . . . . . . Reused . | . . . . . . Traps Extracted . | . . . . . . Installed . | . . . . . . Triggered . | . . . . . . Machines | -11 -10 -10 -10 -9 -8 ---------- Run | Yrd Mat Min Exi Min Mat Machines Disabled 1 | . . . . . 1 Max in Single Turn 1 | . . . . . 1 Machines Repaired . | . . . . . . Machines Dismantled . | . . . . . . Machines Sabotaged . | . . . . . . Overloaded Fab Kills . | . . . . . . Hacking | -11 -10 -10 -10 -9 -8 --------- Run | Yrd Mat Min Exi Min Mat Machines Accessed 5 | . 1 . 1 . 3 Terminals 4 | . 1 . . . 3 Fabricators . | . . . . . . Repair Stations . | . . . . . . Recycling Units . | . . . . . . Scanalyzers . | . . . . . . Garrison Access . | . . . . . . Total Hacks 14 | . 2 . 1 . 11 Successful 6 | . 1 . 1 . 4 Failed 8 | . 1 . . . 7 Catastrophic 1 | . 1 . . . . Database Lockouts . | . . . . . . Manual 11 | . 2 . 1 . 8 Terminals 13 | . 2 . . . 11 Fabricators . | . . . . . . Repair Stations . | . . . . . . Recycling Units . | . . . . . . Scanalyzers . | . . . . . . Garrison Access . | . . . . . . Terminal Hacks 4 | . . . 1 . 3 Record 2 | . . . 1 . 1 Unreport Threat 1 | . . . . . 1 Locate Traps 1 | . . . . . 1 Fabricator Hacks . | . . . . . . Repair Station Hacks . | . . . . . . Recycling Unit Hacks . | . . . . . . Scanalyzer . | . . . . . . Garrison Access Hacks . | . . . . . . Unauthorized Hacks 2 | . 1 . . . 1 Terminals 2 | . 1 . . . 1 Botnet 2 | . 1 . . . 1 Fabricators . | . . . . . . Repair Stations . | . . . . . . Recycling Units . | . . . . . . Scanalyzers . | . . . . . . Garrison Access . | . . . . . . Data Cores Recovered . | . . . . . . Used . | . . . . . . Hacking Detections 4 | . 1 . . . 3 Full Trace Events . | . . . . . . Feedback Events . | . . . . . . Feedback Blocked . | . . . . . . Robot Schematics Acquired . | . . . . . . Robots Built . | . . . . . . Authchips . | . . . . . . Time . | . . . . . . Total Robot Build Rating . | . . . . . . Part Schematics Acquired . | . . . . . . Parts Built . | . . . . . . Authchips . | . . . . . . Time . | . . . . . . Total Part Build Rating . | . . . . . . Parts Repaired . | . . . . . . Time . | . . . . . . Parts Recycled . | . . . . . . Recycled Matter . | . . . . . . Retrieved Matter . | . . . . . . Retrieved Components . | . . . . . . Parts Scanalyzed . | . . . . . . Part Schematics Acquired . | . . . . . . Parts Damaged . | . . . . . . Bothacking | -11 -10 -10 -10 -9 -8 ------------ Run | Yrd Mat Min Exi Min Mat Used RIF Installer . | . . . . . . Robots Hacked . | . . . . . . Non-combat . | . . . . . . Combat . | . . . . . . Robot Hacks Applied . | . . . . . . Relay Couplers Released . | . . . . . . Fabnet Peak Effective % . | . . . . . . Robots Rewired . | . . . . . . Allies Hacked . | . . . . . . Hacks Repelled . | . . . . . . Allies | -11 -10 -10 -10 -9 -8 -------- Run | Yrd Mat Min Exi Min Mat Total Allies 1 | . . 1 . . . Largest Group 1 | . . 1 . . . Highest-Rated Group 31 | . . 31 . . . Highest-Rated Ally 31 | . . 31 . . . Total Orders . | . . . . . . Ally Attacks . | . . . . . . Total Damage . | . . . . . . Kills . | . . . . . . Allies Corrupted . | . . . . . . Allies Melted . | . . . . . . Intel | -11 -10 -10 -10 -9 -8 ------- Run | Yrd Mat Min Exi Min Mat Robot Analysis Total . | . . . . . . Derelict Logs Recovered 3 | . . 3 . . . Drone Launches . | . . . . . . Drone Recoveries . | . . . . . . Exploration | -11 -10 -10 -10 -9 -8 ------------- Run | Yrd Mat Min Exi Min Mat Turns Passed 1904 | 51 241 598 201 208 605 Spaces Moved 2119 | 49 204 616 339 230 681 Core 3 | 2 . . . . 1 Treads . | . . . . . . Legs 2 | . . . . . 2 Wheels 475 | 47 204 224 . . . Hover 1639 | . . 392 339 230 678 Flight . | . . . . . . Fastest Speed 42 | 50 80 56 56 56 42 Average Speed 57 | 78 80 65 56 56 43 Slowest Speed 416 | 80 80 416 56 56 250 Overloaded Moves . | . . . . . . Propulsion Burnouts . | . . . . . . Robots Hopped . | . . . . . . Cave-ins Triggered . | . . . . . . Exploration Rate (%) 45 | 3 29 91 66 45 38 Regions Visited 5 Branch Regions 3 Pre-discovered Areas . | . . . . . . Known Exits Taken 4 | . 1 1 1 1 . Unknown Exits Taken 1 | 1 . . . . . Scrap Searched 3 | . . 1 . 2 . Spaces Dug . | . . . . . . Terrain Destroyed 24 | . . . . . 24 Melee . | . . . . . . Projectile 24 | . . . . . 24 AOE . | . . . . . . Terrain Rammed . | . . . . . . Walls Destroyed . | . . . . . . Machines Disabled . | . . . . . . Actions | -11 -10 -10 -10 -9 -8 --------- Run | Yrd Mat Min Exi Min Mat Total 2681 | 58 249 796 351 309 918 Wait 391 | . 7 155 2 76 151 Move 2114 | 48 203 615 338 229 681 Hop . | . . . . . . Pick Up 33 | 5 7 6 . 2 13 Fast Attach 15 | 5 2 . 3 . 5 Attach 6 | . 1 2 . . 3 Detach 1 | . . . 1 . . Swap 17 | . 4 4 . . 9 Drop 34 | . 5 6 6 2 15 Fire 69 | . 20 8 . . 41 Melee . | . . . . . . Ram . | . . . . . . Kick . | . . . . . . Crush . | . . . . . . Escape Stasis . | . . . . . . Rewire 1 | . . . 1 . . Trap . | . . . . . . Miscellaneous . | . . . . . . Route ------- -11/Scrapyard -10/Materials (discovered 2 exits: *Mat / *Min) -10/Mines (discovered 3 exits: *Mat x2 / *Exi) -10/Exiles -9/Mines -8/Materials (discovered 3 exits: Fac x3) History --------- Turn | Location | Event 5 | -11/Scrapyard | Discovered new exit (range 16) 52 | -11/Scrapyard | Entered Materials 236 | -10/Materials | Discovered new exit (range 16) 253 | -10/Materials | Identified exit to Mines 267 | -10/Materials | Discovered new exit (range 14) 277 | -10/Materials | Identified exit to Materials 293 | -10/Materials | Entered Mines 303 | -10/Mines | Build established: Mutant 318 | -10/Mines | Received a Rocket Launcher from a helpful Derelict 329 | -10/Mines | Met a Derelict bent on vengeance 345 | -10/Mines | Deemed a non-threat by the Exiles lab entrance 345 | -10/Mines | Discovered new exit (range 5) 348 | -10/Mines | Identified exit to Exiles 369 | -10/Mines | Discovered exit to Materials (range 5) 428 | -10/Mines | Learned Materials terminal intel 430 | -10/Mines | Learned 4 Materials zone layouts 553 | -10/Mines | Learned 2 Materials zone layouts 570 | -10/Mines | Discovered exit to Materials (range 13) 579 | -10/Mines | Received a Mining Laser from a helpful Derelict 891 | -10/Mines | Entered Exiles 891 | -10/Exiles | Accompanied by 1 ally 905 | -10/Exiles | Met 8R-AWN 914 | -10/Exiles | Met EX-HEX 954 | -10/Exiles | Met EX-DEC 969 | -10/Exiles | Met EX-BIN 975 | -10/Exiles | Aligned with FarCom system 975 | -10/Exiles | Given EX-Vault access code 990 | -10/Exiles | Opened EX-Vault 996 | -10/Exiles | Found Prototype Device 996 | -10/Exiles | Identified Skeleton Box 999 | -10/Exiles | Found Prototype Device 999 | -10/Exiles | Identified Trap Reconfigurator 1017 | -10/Exiles | Found Prototype Processor 1017 | -10/Exiles | Identified 0b10 Alert Chip 1021 | -10/Exiles | Exiles lab attacked by MAIN.C 1085 | -10/Exiles | Discovered new exit (range 14) 1090 | -10/Exiles | Identified exit to Mines 1092 | -10/Exiles | Left Exiles lab with 0b10 Alert Chip 1092 | -10/Exiles | Entered Mines 1175 | -9/Mines | Found a damaged Exp. Sensor Array with a note attached 1178 | -9/Mines | Found Prototype Device 1256 | -9/Mines | Discovered new exit (range 5) 1257 | -9/Mines | Identified exit to Materials 1281 | -9/Mines | Assembled infested the area 1286 | -9/Mines | Assisted by a Guerilla fighting off Assembled 1300 | -9/Mines | Entered Materials 1300 | -8/Materials | Evolved 4 slots: Propulsion x1, Utility x3 1301 | -8/Materials | Identified exit to Factory 1302 | -8/Materials | Loaded intel: 12 terminal locations 1754 | -8/Materials | Build established: Scout 1827 | -8/Materials | Discovered exit to Factory (range 13) 1905 | -8/Materials | Self-destructed Last Messages --------------- Destroyed Flight Unit. S-10 Pest suffers critical hit (Blast). S-10 Pest destroyed. Slug penetrates Matter Filter. Matter Filter disabled. T-07 Excavator is excavating. Penetrated by Slug. Gauss Cannon blasted off. Imp. Airjet destroyed. S-10 Pest knocked back. T-07 Excavator is excavating. Slug penetrates Matter Filter. H-61 Shepherd calls for reinforcements. ALERT: Hostile activity reported, dispatching reinforcements to area. T-07 Excavator is excavating. A XOKQAEKZ27 1ENNECOKJG2BF4RIQDTEQO7GYOT Slug penetrates Earth. Acquired 2 matter. U-05 Engineer lays Concrete. Map ----- +----------------------------------------------------+ | ????????????????????????? #?????????????????# | | ????????????????????????? #?????????????????# """ | | ????????????????????????? #?????????????????# """ | | ????????????????????????? #?????????????????# """ | | ????????????????????????? #?????????????????# | | ????????????????????????? #?????????????????##### | | ?????????????????????????##?????????????????????? | | ????????????????????????? #?????????????????????? | | ?????????????? ? ???"??? ###???????????????????? | | ?????????????? ?? ? ????? ###?#?????????????????? | | ????????"????? # ??"??? ##????##??????????????? | | ??????????? ? ??? ????? #?????????????????????? | | ??????????" + +? ? ??? ##??#????#????????????? | | ???????? ???# ? ? ? ? ?? #???#?##?#????????????? | | ???????? ?# ? ? ?? ##??#????#????????????? | | ????????##### #?##?#?#????####??##????????????? | | ??#??####### ?#??#??#?##??????#??#??????????? | | ?????? ?##????#??##?##?##?????????????? | | ??#???< g ?########???#??#???????????????? | | ?????? ?? u ?# t ###?###?###????##????????? | | ????#?##???# % a ## #??#?#??#?####?#????????? | | ?????##????# "/ # ##???#?#??##?#?#????????? | | ##????##?##?# g%"%;;;; %;#########??#?#?????????? | | ??#?????#?#?#!**%%H [s]%"""""" #####??#???#??## | | ?#?????#??#?# !% "#"" % %"""""" ##?#??????#???## | | ??#?#????## %# ## #@%%%"""" #????????#?#?#?? | | #??#???#?# # ######" # """"""" #?????###?#??##? | | ?#???#????### ####?## #s""""""" ###??????#??#### | | ?#????####### ##??### # ##?????##???#### | | #????### ## # # #! #????##???????#? | | ######## ## # # # ##?##??#??###??? | | ??# + ## # ! # #####+#######?###?#?###### | | ??# #### ## # + ##"#############?### | | ###+#### ## # """ # # ! ##??#??### | | # ## ## # ""??# # [ ####?##### | | # ## ## # ?"" # # = #?#?####?? | | # ##+#+## # # + ! ##?##???#? | | # """ + # ?"" #] """ ###+#######?##???### | | # """ ## #?"?" # "" ############## | | # """ ####### # ?"" + """ ############## | | # #??##?# #? ?# "" ##??######?### | | # """ #????## ####### " ####?#####??## | | # """ ###### ##### #??########### | | # """ + ########## | | # # T = #?##??#??# | | # ## ### ##### =* ########## | | ########+#### ##?####+#####[ * #?######## "" | | ??# # #### + = ########?# [ T" | | ??# + #??# """ #### ##??##?### "" | | #?# # #??# """ #?#" ##?###?### | +----------------------------------------------------+ Best States ------------- Heat Dissipation 31 Energy Generation 14 Energy Capacity 265 Matter Stores 300 Matter Capacity 300 Sight Range 16 Terrain Scan Range 16 Terrain Scan Density 110 Evasion (%) 56 Item Schematics ----------------- None Robot Schematics ------------------ None Fabricated ------------ Nothing Alien Tech Used ----------------- None Achievements -------------- Omniscient Cartographer Challenges ------------ None Game ------ Seed OpticalHybridLoader Manual? 0 Play Time 00:35:14 Cumulative 17.2 hours Start 2024.04.10 @ 00:13:29 End 2024.04.10 @ 00:58:31 Sessions 1 Manual Loads 0 Difficulty Rogue Special Mode None Game No. 33 Rogue 33 Adventurer 0 Explorer 0 Win Type - Total 0 Types 0/0/0/0/0/0/0/0/0 Lore% 15 Gallery% 22 Achievement% 22 Wizard Run 0 Options --------- Layout 1 ASCII 0 Keyboard 0 Movement Numpad Keybinds 0 Fullscreen 1 Font 32/SmallcapsGlow Map View 50x35 Zoom Use 0% Tactical HUD 0 Map Filters NONE Filters NONE Steam 1 RUN: 6d401136-22be-4ecc-8caf-4246dbee5a77